fUSD/lending_fUSD_20240213
["ID","MTS","AMOUNT","RATE_DAILY","PERIOD"]
[313921854,1707823875623,-5806.61097963,0.000372,20]
[313921855,1707823875632,-300.0,0.000372,5]
[313921856,1707823875643,-150.0,0.00037203,2]
[313921857,1707823875653,-157.12628241,0.00037221,7]
[313921858,1707823875662,-150.94077731,0.00037234,7]
[313921859,1707823875671,-150.94077731,0.00037248,7]
[313921860,1707823875680,-418.1,0.00037253,2]
[313921861,1707823875689,-150.0,0.0003727,7]
[313921862,1707823875699,-5838.79433181,0.0003728,30]
[313921863,1707823875709,-153.5068063,0.00037288,7]
[313921864,1707823875718,-200.0,0.000373,12]
[313921865,1707823875727,-200.0,0.000373,10]
[313921866,1707823875736,-1000.0,0.000373,15]
[313921867,1707823875746,-454.97371241,0.000373,33]
[313921868,1707823875755,-150.0,0.0003731,7]
[313921869,1707823875764,-317.38129286,0.00037314,7]
[313921870,1707823875774,-258.73505277,0.00037334,7]
[313921871,1707823875784,-706.95464027,0.00037335,7]
[313921872,1707823875793,-154.08080949,0.00037339,7]
[313921873,1707823875803,-2000.0,0.00037342,2]
[313921874,1707823875813,-2000.0,0.00037342,2]
[313921875,1707823875822,-2000.0,0.00037342,2]
[313921876,1707823875831,-150.0,0.00037343,7]
[313921877,1707823875841,-150.94077731,0.00037364,7]
[313921878,1707823875850,-8998.4,0.00037373,7]
[313921879,1707823875859,-8998.4,0.00037373,7]
[313921880,1707823875871,-153.5068063,0.00037381,7]
[313921881,1707823875881,-150.94077731,0.00037385,7]
[313921882,1707823875891,-156.74226489,0.00037393,7]
[313921883,1707823875900,-150.0,0.00037397,7]
[313921884,1707823875909,-150.0,0.00037397,7]
[313921885,1707823875918,-150.0,0.00037415,7]
[313921886,1707823875928,-1746.97762353,0.00037422,7]
[313921887,1707823875938,-150.94077731,0.0003743,7]
[313921888,1707823875947,-151.65,0.00037443,2]
[313921889,1707823875957,-500.0,0.00037443,2]
[313921890,1707823875966,-63800.0,0.0003745,8]
[313921891,1707823875975,-200.0,0.00037458,2]
[313921892,1707823875985,-1746.97762353,0.00037459,7]
[313921893,1707823875994,-154.08080949,0.00037462,7]
[313921894,1707823876003,-2500.00000099,0.0003748,29]
[313921895,1707823876013,-150.0,0.00037488,7]
[313921896,1707823876022,-154.36120313,0.00037489,7]
[313921897,1707823876032,-229.27,0.00037492,2]
[313921898,1707823876041,-150.0,0.00037494,2]
[313921899,1707823876051,-9318.68,0.000375,7]
[313921900,1707823876060,-2121.08,0.000375,7]
[313921901,1707823876069,-300.0,0.000375,10]
[313921902,1707823876078,-229.0,0.000375,30]
[313921903,1707823876087,-280.0,0.000375,120]
[313921904,1707823876096,-1000.0,0.000375,2]
[313921905,1707823876105,-1000.0,0.000375,2]
[313921906,1707823876114,-2000.0,0.000375,2]
[313921907,1707823876126,-540.281519,0.000375,2]
[313921908,1707823876135,-455.0,0.000375,26]
[313921909,1707823876144,-170.28585315,0.00037523,7]
[313921910,1707823876155,-155.0079231,0.00037526,7]
[313921911,1707823876165,-150.0,0.0003756,7]
[313921912,1707823876174,-446.02,0.00037567,5]
[313921913,1707823876184,-151.33874609,0.00037571,7]
[313921914,1707823876193,-152.0,0.0003758,10]
[313921915,1707823876203,-22539.50609232,0.0003762,2]
[313921916,1707823876213,-150.0,0.00037632,7]
[313921917,1707823876224,-1123.24997971,0.0003764,2]
[313921918,1707823876234,-8998.4,0.00037647,7]
[313921919,1707823876243,-8998.4,0.00037647,7]
[313921920,1707823876254,-10000.0,0.00037648,11]
[313921921,1707823876264,-150.0,0.00037659,7]
[313921922,1707823876275,-167.70875516,0.00037674,7]
[313921923,1707823876285,-50101.55386618,0.00037699,2]
[313921924,1707823876294,-229.0,0.000377,30]
[313921925,1707823876305,-300.0,0.000377,5]
[313921926,1707823876316,-500.0,0.00037704,2]
[313921927,1707823876326,-150.0,0.00037705,7]
[313921928,1707823876335,-154.16943476,0.00037706,7]
[313921929,1707823876345,-209.0,0.0003771,2]
[313921930,1707823876354,-154.08080949,0.00037714,7]
[313921931,1707823876365,-153.5068063,0.00037718,7]
[313921932,1707823876377,-163.85216396,0.00037732,7]
[313921933,1707823876386,-156.75392784,0.00037768,7]
[313921934,1707823876395,-49500.0,0.0003777,7]
[313921935,1707823876405,-100992.41659748,0.00037777,5]
[313921936,1707823876417,-150.0,0.00037777,7]
[313921937,1707823876427,-14742.45481719,0.00037778,6]
[313921938,1707823876437,-158.217808,0.00037779,2]
[313921939,1707823876446,-5281.667702,0.00037779,7]
[313921940,1707823876456,-2695.672785,0.00037779,7]
[313921941,1707823876465,-1373.161492,0.00037779,7]
[313921942,1707823876474,-500000.0,0.00037779,60]
[313921943,1707823876483,-154.36120313,0.00037783,7]
[313921944,1707823876492,-9318.68,0.000378,7]
[313921945,1707823876501,-2121.08,0.000378,7]
[313921946,1707823876510,-200.0,0.000378,11]
[313921947,1707823876522,-1032.0,0.000378,37]
[313921948,1707823876532,-2984076.38989826,0.000378,30]
[313921949,1707823876542,-8216.3022807,0.000378,2]
[313921950,1707823876553,-1521.44899,0.00037808,14]
[313921951,1707823876564,-154.08080949,0.00037831,7]
[313921952,1707823876573,-887.89571105,0.00037834,4]
[313921953,1707823876584,-150.94817835,0.00037839,7]
[313921954,1707823876594,-5000.0,0.00037848,31]
[313921955,1707823876606,-150.0,0.00037849,7]
[313921956,1707823876617,-152.86827944,0.0003786,10]
[313921957,1707823876628,-155.44466971,0.00037863,7]
[313921958,1707823876638,-593.0,0.00037867,120]
[313921959,1707823876647,-317.38129286,0.00037867,7]
[313921960,1707823876657,-706.95464027,0.00037874,7]
[313921961,1707823876666,-150.94077731,0.00037879,7]
[313921962,1707823876675,-481.09,0.00037879,30]
[313921963,1707823876684,-476.51962042,0.00037879,10]
[313921964,1707823876693,-17163.98068412,0.00037879,2]
[313921965,1707823876703,-18746.35298443,0.00037879,3]
[313921966,1707823876713,-5796.94681491,0.00037879,2]
[313921967,1707823876723,-100642.09183458,0.00037879,14]
[313921968,1707823876732,-3794.3619734,0.00037879,3]
[313921969,1707823876742,-500.0,0.00037879,7]
[313921970,1707823876750,-166342.75431545,0.00037879,2]
[313921971,1707823876759,-16176.82276171,0.00037879,2]
[313921972,1707823876769,-12892.73023052,0.00037879,2]
[313921973,1707823876778,-1210.0,0.00037879,2]
[313921974,1707823876787,-2121.22087384,0.00037879,2]
[313921975,1707823876796,-334.64194143,0.00037879,2]
[313921976,1707823876805,-2890.76380101,0.00037879,2]
[313921977,1707823876815,-5801.37258701,0.00037879,2]
[313921978,1707823876826,-1461.81276856,0.00037879,2]
[313921979,1707823876836,-7088.10213086,0.00037879,2]
[313921980,1707823876845,-2628.33584292,0.00037879,2]
[313921981,1707823876855,-2359.7261212,0.00037879,2]
[313921982,1707823876865,-2568.5391278,0.00037879,2]
[313921983,1707823876874,-132102.66597308,0.00037879,2]
[313921984,1707823876884,-3123.74175223,0.00037879,2]
[313921985,1707823876894,-167.5316378,0.00037879,2]
[313921986,1707823876904,-10018.46848361,0.00037879,2]
[313921987,1707823876913,-3039.99941106,0.00037879,2]
[313921988,1707823876923,-3665.19210998,0.00037879,2]
[313921989,1707823876932,-10860.70419606,0.00037879,7]
[313921990,1707823876941,-133434.92567546,0.00037879,7]
[313921991,1707823876950,-160069.80365862,0.00037879,7]
[313921992,1707823876959,-367555.75158334,0.00037879,7]
[313921993,1707823876968,-206.2366897,0.00037879,2]
[313921994,1707823876977,-23552.7818758,0.00037879,7]
[313921995,1707823876986,-265497.85957503,0.00037879,10]
[313921996,1707823876995,-4818.06117125,0.00037879,2]
[313921997,1707823877005,-173.79008369,0.00037879,2]
[313921998,1707823877015,-71884.55765509,0.00037879,2]
[313921999,1707823877026,-161.53093151,0.00037879,2]
[313922000,1707823877035,-8880.2601286,0.00037879,2]
[313922001,1707823877044,-1261.06407118,0.00037879,2]
[313922002,1707823877053,-4754.36050519,0.00037879,2]
[313922003,1707823877062,-6764.36501255,0.00037879,2]
[313922004,1707823877071,-21820.69677555,0.00037879,2]
[313922005,1707823877080,-19416.92194759,0.00037879,2]
[313922006,1707823877089,-1044.02413734,0.00037879,2]
[313922007,1707823877099,-162.47227609,0.00037879,2]
[313922008,1707823877108,-560.07302193,0.00037879,2]
[313922009,1707823877117,-148029.56792031,0.00037879,10]
[313922010,1707823877126,-454.28892873,0.00037879,14]
[313922011,1707823877135,-41052.87655481,0.00037879,2]
[313922012,1707823877145,-9836.94849409,0.00037879,3]
[313922013,1707823877154,-83116.72009371,0.00037879,2]
[313922014,1707823877164,-162.95137962,0.00037879,2]
[313922015,1707823877173,-4716.51455105,0.00037879,7]
[313922016,1707823877182,-7447.21443027,0.00037879,7]
[313922017,1707823877192,-501.70361038,0.00037879,7]
[313922018,1707823877202,-391.85645287,0.00037879,7]
[313922019,1707823877216,-101747.05393778,0.00037879,7]
[313922020,1707823877226,-36907.81531627,0.00037879,2]
[313922021,1707823877236,-815.97917798,0.00037879,10]
[313922022,1707823877246,-5088.88741924,0.00037879,4]
[313922023,1707823877255,-10312.31277261,0.00037879,7]
[313922024,1707823877264,-5000.0,0.00037879,10]
[313922025,1707823877274,-6209.0,0.00037879,3]
[313922026,1707823877284,-7098.0,0.00037879,4]
[313922027,1707823877293,-11066.12535873,0.00037879,2]
[313922028,1707823877303,-1095.2124037,0.00037879,120]
[313922029,1707823877314,-1668.0669957,0.00037879,120]
[313922030,1707823877324,-150.0,0.00037879,31]
[313922031,1707823877334,-534.45898038,0.00037879,31]
[313922032,1707823877344,-500.0,0.00037879,120]
[313922033,1707823877354,-11212.75815057,0.00037879,60]
[313922034,1707823877364,-614.98444207,0.00037879,30]
[313922035,1707823877376,-563.03964492,0.00037879,120]
[313922036,1707823877385,-245.14988764,0.00037879,120]
[313922037,1707823877394,-222.32357138,0.00037879,120]
[313922038,1707823877405,-256.81946189,0.00037879,120]
[313922039,1707823877418,-6972.62686889,0.00037879,30]
[313922040,1707823877429,-228.03677604,0.00037879,60]
[313922041,1707823877440,-271.85214907,0.00037879,30]
[313922042,1707823877450,-1249.97201339,0.00037879,60]
[313922043,1707823877459,-1000.0,0.00037879,30]
[313922044,1707823877469,-232.8424793,0.00037879,90]
[313922045,1707823877478,-1000.0,0.00037879,30]
[313922046,1707823877486,-166.73954194,0.00037879,120]
[313922047,1707823877496,-383.88859898,0.00037879,120]
[313922048,1707823877505,-1077.03257695,0.00037879,35]
[313922049,1707823877514,-410.93801674,0.00037879,120]
[313922050,1707823877522,-182.86233906,0.00037879,60]
[313922051,1707823877533,-303.28095395,0.00037879,120]
[313922052,1707823877543,-639.81933841,0.00037879,120]
[313922053,1707823877552,-242.79924087,0.00037879,30]
[313922054,1707823877561,-360.0182819,0.00037879,120]
[313922055,1707823877570,-479.98588106,0.00037879,120]
[313922056,1707823877579,-267.3655003,0.00037879,120]
[313922057,1707823877589,-156.89029225,0.00037879,120]
[313922058,1707823877598,-2009.51123234,0.00037879,30]
[313922059,1707823877607,-19416.0,0.00037879,120]
[313922060,1707823877618,-771.38193937,0.00037879,30]
[313922061,1707823877627,-5000.0,0.00037879,120]
[313922062,1707823877636,-5000.0,0.00037879,120]
[313922063,1707823877645,-5000.0,0.00037879,120]
[313922064,1707823877654,-157.0,0.00037879,120]
[313922065,1707823877663,-1000.0,0.00037879,30]
[313922066,1707823877673,-300.0,0.00037879,38]
[313922067,1707823877682,-300.0,0.00037879,39]
[313922068,1707823877691,-8000.0,0.00037879,120]
[313922069,1707823877701,-16994.18679875,0.00037879,120]
[313922070,1707823877710,-748.19670898,0.00037879,7]
[313922071,1707823877720,-51000.0,0.00037879,30]
[313922072,1707823877729,-589.13340108,0.00037879,30]
[313922073,1707823877739,-69533.62678644,0.00037879,7]
[313922074,1707823877748,-150.0,0.00037879,120]
[313922075,1707823877757,-2000.0,0.00037879,30]
[313922076,1707823877767,-2000.0,0.00037879,30]
[313922077,1707823877776,-2000.0,0.00037879,30]
[313922078,1707823877786,-2000.0,0.00037879,30]
[313922079,1707823877795,-2000.0,0.00037879,30]
[313922080,1707823877805,-150.0,0.00037879,7]
[313922081,1707823877813,-122299.51065212,0.00037879,32]
[313922082,1707823877822,-150.0,0.00037879,60]
[313922083,1707823877832,-190.22243994,0.00037879,59]
[313922084,1707823877841,-1222.53648573,0.00037879,4]
[313922085,1707823877850,-4445.14059364,0.00037879,4]
[313922086,1707823877859,-35092.71802479,0.00037879,4]
[313922087,1707823877869,-50000.0,0.00037879,30]
[313922088,1707823877879,-1716.4228697,0.00037879,30]
[313922089,1707823877889,-9294.11494803,0.00037879,30]
[313922090,1707823877899,-4359.76564006,0.00037879,30]
[313922091,1707823877909,-29639.34999692,0.00037879,7]
[313922092,1707823877918,-216.83711681,0.00037879,120]
[313922093,1707823877927,-5363.98736713,0.00037879,120]
[313922094,1707823877938,-201724.19634008,0.00037879,30]
[313922095,1707823877948,-177406.56759359,0.00037879,30]
[313922096,1707823877958,-81490.33939045,0.00037879,30]
[313922097,1707823877970,-260122.16345632,0.00037879,30]
[313922098,1707823877979,-881347.87579722,0.00037879,10]
[313922099,1707823877990,-9443.42239579,0.00037879,120]
[313922100,1707823877999,-589.44573067,0.00037879,120]
[313922101,1707823878009,-512.5677035,0.00037879,120]
[313922102,1707823878019,-18839.03014144,0.00037879,30]
[313922103,1707823878030,-620.91032767,0.00037879,120]
[313922104,1707823878039,-475297.09550309,0.00037879,120]
[313922105,1707823878050,-514.49722245,0.00037879,120]
[313922106,1707823878060,-395.87476936,0.00037879,30]
[313922107,1707823878069,-241.03189394,0.00037879,30]
[313922108,1707823878078,-55770.3950317,0.00037879,30]
[313922109,1707823878088,-826.17855524,0.00037879,120]
[313922110,1707823878097,-250.89667927,0.00037879,120]
[313922111,1707823878106,-263917.38583132,0.00037879,120]
[313922112,1707823878116,-32564.96638421,0.00037879,30]
[313922113,1707823878125,-10381.39545297,0.00037879,30]
[313922114,1707823878134,-1723.17857941,0.00037879,30]
[313922115,1707823878143,-496.92497591,0.00037879,120]
[313922116,1707823878153,-523.2778715,0.00037879,30]
[313922117,1707823878162,-225.27504601,0.00037879,30]
[313922118,1707823878171,-836.25354963,0.00037879,120]
[313922119,1707823878180,-1412.67978222,0.00037879,120]
[313922120,1707823878189,-2000.0,0.00037879,20]
[313922121,1707823878199,-2000.0,0.00037879,24]
[313922122,1707823878209,-2000.0,0.00037879,26]
[313922123,1707823878218,-6408.70536877,0.00037879,30]
[313922124,1707823878229,-4000.0,0.00037879,30]
[313922125,1707823878238,-4000.0,0.00037879,36]
[313922126,1707823878247,-4000.0,0.00037879,40]
[313922127,1707823878257,-4000.0,0.00037879,44]
[313922128,1707823878267,-4000.0,0.00037879,48]
[313922129,1707823878276,-4000.0,0.00037879,50]
[313922130,1707823878286,-4000.0,0.00037879,54]
[313922131,1707823878295,-4000.0,0.00037879,54]
[313922132,1707823878304,-4000.0,0.00037879,58]
[313922133,1707823878313,-4000.0,0.00037879,60]
[313922134,1707823878323,-4000.0,0.00037879,64]
[313922135,1707823878332,-544.66902656,0.00037879,30]
[313922136,1707823878342,-8698.0,0.00037879,7]
[313922137,1707823878351,-99500.0,0.00037879,120]
[313922138,1707823878360,-572.41512919,0.00037879,120]
[313922139,1707823878372,-300000.0,0.00037879,15]
[313922140,1707823878382,-150000.0,0.00037879,30]
[313922141,1707823878391,-81175.13707827,0.00037879,120]
[313922142,1707823878400,-1306411.69,0.00037879,120]
[313922143,1707823878411,-12808.16492063,0.00037879,7]
[313922144,1707823878420,-421.99120803,0.00037879,7]
[313922145,1707823878429,-699.19669953,0.00037879,7]
[313922146,1707823878438,-395.84911844,0.00037879,120]
[313922147,1707823878450,-2513522.21067633,0.00037879,30]
[313922148,1707823878834,-324.83345453,0.00037879,2]
[313922149,1707823878964,-394.4127582,0.00028791,2]
[313922150,1707823878976,-500.0,0.0002894,2]
[313922151,1707823878985,-198.32,0.00029027,10]
[313922152,1707823878995,-500.0,0.00029067,2]
[313922153,1707823879006,-263.45,0.00029214,2]
[313922154,1707823879015,-500.0,0.00029341,2]
[313922155,1707823879024,-500.0,0.00029615,2]
[313922156,1707823879033,-130.22885956,0.00029889,2]
[313922157,1707823879046,-369.77114044,0.00029889,2]
[313922158,1707823879056,-500.0,0.00031259,2]
[313922159,1707823879065,-500.0,0.00031533,2]
[313922160,1707823879075,-500.0,0.00031807,2]
[313922161,1707823879085,-500.0,0.00032081,2]
[313922162,1707823879094,-500.0,0.00032355,2]
[313922163,1707823879104,-7891.46882617,0.00037879,2]
[313922164,1707823879114,-369269.6769148,0.0003788,30]
[313922165,1707823879144,-500.0,0.00030163,2]
[313922166,1707823879154,-1.1098,0.00032629,2]
[313922167,1707823879296,-482.90450122,0.00028793,2]
[313922168,1707823879312,-17.09549878,0.00028793,2]
[313922169,1707823879322,-367.25343851,0.00028793,2]
[313922170,1707823879333,-170.41656149,0.00028793,2]
[313922171,1707823879342,-500.0,0.00028793,2]
[313922172,1707823879351,-4361.58343847,0.00028841,2]
[313922173,1707823879364,-586.56180623,0.00028841,2]
[313922174,1707823879378,-1048.16541253,0.00028939,2]
[313922175,1707823879387,-664.34515077,0.0002894,2]
[313922176,1707823879396,-593.654,0.00029621,2]
[313922177,1707823879405,-500.0,0.00030437,2]
[313922178,1707823879417,-500.0,0.00030711,2]
[313922179,1707823879426,-407.49051978,0.00030985,2]
[313922180,1707823879438,-92.50948022,0.00030985,2]
[313922181,1707823879447,-500.0,0.00031259,2]
[313922182,1707823879456,-36.99051978,0.00031533,2]
[313922183,1707823879480,-2673.85,0.00028878,2]
[313922309,1707825031520,-498.15545369,0.00023568,2]
[313922310,1707825031529,-219.38936874,0.00023569,2]
[313922311,1707825031543,-201.06038814,0.00023569,2]
[313922312,1707825031552,-4643.13524591,0.00023569,2]
[313922313,1707825031628,-225.81539774,0.00023569,2]
[313922314,1707825031637,-274.82388226,0.0002357,2]
[313922358,1707825037414,-414.36901055,0.00023567,2]
[313922360,1707825037425,-701.022719,0.00023567,2]
[313922362,1707825037435,-6.07582965,0.0002357,2]
[313922364,1707825037445,-1729.47205624,0.0002357,2]
[313922392,1707825040054,-2932.06210934,0.0002357,2]
[313922393,1707825040063,-973.07605628,0.00023573,2]
[313922394,1707825040072,-205.0,0.00023579,2]
[313922395,1707825040081,-518.01679133,0.00024,2]
[313922396,1707825040091,-150.0,0.00024163,2]
[313922397,1707825040099,-209.54180305,0.00024181,2]
[313922398,1707825040152,-478.97819695,0.00024181,2]
[313922399,1707825040162,-155.0,0.00024356,2]
[313922400,1707825040171,-499.99,0.00024356,2]
[313922401,1707825040180,-37478.58213522,0.00024357,2]
[313922402,1707825040193,-2049.75,0.00024357,2]
[313922403,1707825040264,-20461.1276682,0.00024357,2]
[313922405,1707825040276,-5006.7414,0.00024357,2]
[313922470,1707825040892,-65068.91468339,0.00024357,2]
[313922472,1707825040901,-9191.0371,0.00024358,2]
[313922474,1707825040911,-9999.99,0.00024358,2]
[313922477,1707825040920,-840.0,0.00024513,2]
[313922478,1707825040930,-823.05601308,0.00024899,2]
[313922481,1707825040940,-156.29335066,0.00024998,2]
[313922483,1707825040950,-1107.891,0.00024999,2]
[313922485,1707825040959,-159.6500011,0.00025,2]
[313922487,1707825040969,-7449.82,0.00025,2]
[313922489,1707825040978,-1256.61818988,0.00025,2]
[313922491,1707825040988,-350.0,0.00025,3]
[313922493,1707825040997,-152.84,0.00025146,2]
[313922494,1707825041007,-23900.0,0.00025238,2]
[313922496,1707825041016,-15861.59,0.00025244,2]
[313922499,1707825041026,-1616.22,0.00025244,2]
[313922501,1707825041036,-469.75,0.00025394,2]
[313922503,1707825041046,-500.0,0.00025457,2]
[313922505,1707825041055,-200.0,0.00026098,2]
[313922507,1707825041064,-2000.0,0.00026098,2]
[313922509,1707825041074,-250.0,0.00026148,2]
[313922511,1707825041083,-200.0,0.00026168,2]
[313922513,1707825041093,-205.0,0.0002618,6]
[313922515,1707825041102,-1977.32,0.00026308,2]
[313922516,1707825041112,-823.05601306,0.00026344,2]
[313922518,1707825041121,-688.52,0.00026444,2]
[313922520,1707825041130,-3660.22027477,0.00026568,2]
[313922523,1707825041140,-4945.59925922,0.00026576,2]
[313922524,1707825041149,-160.0,0.00026578,2]
[313922526,1707825041159,-210.0,0.00026579,2]
[313922529,1707825041169,-418.59953692,0.00027,2]
[313922531,1707825041178,-400.0,0.00027,3]
[313922533,1707825041188,-469.75,0.00027038,2]
[313922535,1707825041197,-165.54,0.00027062,2]
[313922537,1707825041206,-1899.12536046,0.00027097,2]
[313922539,1707825041215,-160.66207041,0.00027337,3]
[313922541,1707825041224,-176.72827746,0.00027337,3]
[313922543,1707825041234,-324.2,0.00027397,2]
[313922545,1707825041244,-1500.0,0.000274,2]
[313922547,1707825041253,-324.67834053,0.00027434,2]
[313922549,1707825041263,-4369.13287087,0.00027556,6]
[313922551,1707825041272,-324.2,0.00027556,2]
[313922553,1707825041281,-840.0,0.00027577,2]
[313922555,1707825041290,-324.2,0.00027714,2]
[313922556,1707825041299,-823.05601306,0.00027788,2]
[313922559,1707825041309,-263.4960052,0.00027847,2]
[313922561,1707825041318,-324.2,0.00027872,2]
[313922563,1707825041327,-417.7137,0.00028026,2]
[313922565,1707825041337,-324.2,0.0002803,2]
[313922566,1707825041346,-12359.23026394,0.00028127,2]
[313922569,1707825041356,-2807.51865324,0.00028128,2]
[313922571,1707825041366,-203.61405473,0.00028128,2]
[313922573,1707825041384,-716.97515648,0.00028128,2]
[313922576,1707825041396,-6936.96859286,0.00028128,2]
[313922578,1707825041406,-2125.5203468,0.00028128,2]
[313922580,1707825041416,-222.98633161,0.00028128,2]
[313922582,1707825041426,-155.0,0.00028128,2]
[313922584,1707825041436,-155.78964465,0.00028128,2]
[313922586,1707825041446,-156.97853648,0.00028128,2]
[313922588,1707825041455,-2178.02736905,0.00028129,2]
[313922590,1707825041465,-155.0,0.00028129,2]
[313922592,1707825041474,-500.0,0.0002813,2]
[313922594,1707825041484,-500.0,0.0002813,2]
[313922596,1707825041493,-500.0,0.0002813,2]
[313922598,1707825041502,-500.0,0.0002813,2]
[313922600,1707825041512,-500.0,0.0002813,2]
[313922602,1707825041521,-500.0,0.0002813,2]
[313922604,1707825041530,-500.0,0.0002813,2]
[313922606,1707825041540,-375.67,0.0002813,2]
[313922608,1707825041549,-500.0,0.0002813,2]
[313922610,1707825041559,-500.0,0.0002813,2]
[313922613,1707825041569,-500.0,0.0002813,2]
[313922615,1707825041578,-551.95,0.0002813,2]
[313922617,1707825041587,-324.2,0.00028189,2]
[313922618,1707825041597,-19999.99,0.00028203,2]
[313922621,1707825041607,-324.2,0.00028347,2]
[313922625,1707825041857,-324.2,0.00028505,2]
[313922626,1707825041868,-423.07335202,0.00028509,2]
[313922627,1707825041878,-292.20165117,0.00028523,2]
[313922628,1707825041888,-1059.83118801,0.00028523,2]
[313922629,1707825041897,-155.42920267,0.00028523,2]
[313922630,1707825041908,-958.41935477,0.00028523,2]
[313922631,1707825041917,-258.42375054,0.00028523,2]
[313922632,1707825041927,-162.73999049,0.00028523,2]
[313922633,1707825041937,-230.22393595,0.00028523,2]
[313922634,1707825041946,-156.45158269,0.00028523,2]
[313922635,1707825041956,-475.28170512,0.00028523,2]
[313922636,1707825041965,-530.29135812,0.00028523,2]
[313922637,1707825041975,-1557.34162499,0.00028524,2]
[313922638,1707825041985,-163.86486787,0.00028524,2]
[313922639,1707825041994,-65709.9900191,0.00028525,2]
[313922640,1707825042003,-254.49520418,0.00028529,2]
[313922641,1707825042013,-324.2,0.00028664,2]
[313922642,1707825042022,-711.0492,0.00028666,2]
[313922643,1707825042032,-469.75,0.00028681,2]
[313922644,1707825042041,-3999.8788,0.00028693,2]
[313922645,1707825042050,-10473.4028,0.00028693,2]
[313922646,1707825042059,-688.52,0.00028708,2]
[313922647,1707825042068,-500.0,0.00028767,2]
[313922648,1707825042078,-500.0,0.00028767,2]
[313922649,1707825042087,-500.0,0.00028767,2]
[313922651,1707825042096,-500.0,0.00028767,2]
[313922653,1707825042105,-500.0,0.00028767,2]
[313922654,1707825042115,-500.0,0.00028767,2]
[313922655,1707825042128,-500.0,0.00028767,2]
[313922656,1707825042139,-500.0,0.00028767,2]
[313922657,1707825042148,-500.0,0.00028767,2]
[313922658,1707825042158,-500.0,0.00028767,2]
[313922659,1707825042168,-500.0,0.00028767,2]
[313922660,1707825042178,-500.0,0.00028767,2]
[313922661,1707825042188,-500.0,0.00028767,2]
[313922662,1707825042197,-500.0,0.00028767,2]
[313922663,1707825042207,-500.0,0.00028767,7]
[313922665,1707825042218,-500.0,0.00028767,2]
[313922667,1707825042228,-500.0,0.00028767,2]
[313922669,1707825042237,-500.0,0.00028767,2]
[313922671,1707825042247,-500.0,0.00028767,2]
[313922673,1707825042256,-500.0,0.00028767,2]
[313922675,1707825042266,-500.0,0.00028767,2]
[313922677,1707825042276,-512.93149235,0.00028767,2]
[313922679,1707825042286,-500.0,0.00028767,2]
[313922681,1707825042296,-500.0,0.00028767,2]
[313922682,1707825042305,-500.0,0.00028767,2]
[313922683,1707825042315,-500.0,0.00028767,2]
[313922684,1707825042327,-500.0,0.00028767,2]
[313922685,1707825042337,-500.0,0.00028767,2]
[313922686,1707825042347,-500.0,0.00028767,2]
[313922687,1707825042357,-500.0,0.00028767,2]
[313922688,1707825042366,-500.0,0.00028767,2]
[313922689,1707825042375,-500.0,0.00028767,2]
[313922691,1707825042385,-500.0,0.00028767,2]
[313922693,1707825042395,-500.0,0.00028767,2]
[313922695,1707825042405,-500.0,0.00028767,2]
[313922697,1707825042414,-512.28992833,0.00028767,2]
[313922699,1707825042424,-500.0,0.00028767,2]
[313922700,1707825042433,-500.0,0.00028767,2]
[313922701,1707825042444,-500.0,0.00028767,2]
[313922702,1707825042452,-500.0,0.00028767,2]
[313922703,1707825042462,-500.0,0.00028767,2]
[313922704,1707825042472,-500.0,0.00028767,2]
[313922705,1707825042481,-500.0,0.00028767,2]
[313922706,1707825042490,-500.0,0.00028767,2]
[313922707,1707825042499,-500.0,0.00028767,2]
[313922709,1707825042508,-500.0,0.00028767,2]
[313922711,1707825042517,-500.0,0.00028767,2]
[313922712,1707825042527,-503.27057917,0.00028767,2]
[313922713,1707825042536,-500.0,0.00028767,2]
[313922714,1707825042545,-500.0,0.00028767,2]